[Event "SixDays Budapest GM-A January 2024"]
[Site "Budapest"]
[Date "2024.01.29"]
[Round "5.2"]
[White "Karamsetty, Jeevan"]
[Black "Barrish, Daniel"]
[Result "1-0"]
[ECO "B40"]
[WhiteElo "2211"]
[BlackElo "2347"]
[Annotator "TA"]
[PlyCount "79"]
[EventDate "2024.01.26"]
[EventType "tourn"]
[EventCountry "HUN"]
[SourceTitle "playchess.com"]
[Source "ChessBase"]
[SourceQuality "1"]
[TimeControl "5400+30"]

{[%evp 18,79,9,-5,0,0,0,-36,0,-4,-7,-4,16,20,31,21,18,11,51,46,44,14,18,21,23,22,54,49,48,31,31,39,35,5,32,44,35,33,36,44,78,40,116,110,136,132,130,140,279,289,413,396,405,400,411,393,396,375,479,487,29993,29994,29994,29995]} 1. e4 {[%emt 0:00:56]} c5 {[%emt 0:03:23]} 2. Nf3 {[%emt 0:00:08]} e6 {[%emt 0:00:22]} 3. d3 {[%emt 0:00:06]} Nc6 {[%emt 0:00:11]} 4. g3 {[%emt 0:00:06]} d5 {[%emt 0:00:15]} 5. Nbd2 {[%emt 0:00:07]} Bd6 {[%emt 0:00:41]} 6. Bg2 {[%emt 0:00:11]} Nge7 {[%emt 0:00:22]} 7. O-O {[%emt 0:00:06]} O-O {[%emt 0:00:36]} 8. Re1 {[%emt 0:00:04]} Qc7 {[%emt 0:01:05]} 9. Qe2 {[%emt 0:00:23]} f6 {[%emt 0:02:16]} 10. c3 {[%emt 0:06:04]} d4 {[%emt 0:02:17]} 11. Nc4 {[%emt 0:02:01]} e5 {[%emt 0:02:47]} 12. Bd2 {[%emt 0:04:11]} Be6 {[%emt 0:03:27] Black is slightly better.} 13. cxd4 {[%emt 0:04:45]} cxd4 {[%emt 0:01:34]} 14. Rec1 {[%emt 0:05:42]} b5 {[%emt 0:08:17]} 15. Nxd6 {[%emt 0:05:02]} Qxd6 {[%emt 0:00:09]} 16. Nh4 {[%emt 0:00:25]} Rac8 {[%emt 0:06:22]} 17. a3 {[%emt 0:03:48]} Rc7 {[%emt 0:04:40]} 18. f4 {[%emt 0:03:19]} Rfc8 {[%emt 0:03:30]} 19. Bf3 {[%emt 0:14:25]} Qd7 {[%emt 0:05:29]} 20. b4 {[%emt 0:09:22]} Nd8 {[%emt 0:06:56]} 21. Qd1 {[%emt 0:00:51]} Nb7 {[%emt 0:01:12]} 22. Rxc7 {[%emt 0:04:16]} Rxc7 {[%emt 0:01:30]} 23. Rc1 {[%emt 0:00:14]} g6 {[%emt 0:06:45]} 24. fxe5 {[%emt 0:04:27]} fxe5 {[%emt 0:00:09]} 25. Bg4 {[%emt 0:09:32]} Rxc1 {[%emt 0:12:50]} (25... Bxg4 $5 26. Rxc7 Qxc7 27. Qxg4 Nd8 $14) 26. Bxe6+ {[%emt 0:00:16]} Qxe6 {[%emt 0:00:08]} 27. Qxc1 {[%emt 0:00:33]} Qc6 {[%emt 0:07:24]} 28. Qd1 {[%emt 0:01:58]} Qe6 {[%emt 0:03:24]} 29. Nf3 {[%emt 0:04:08] Black must now prevent Qc2.} Nc6 {[%emt 0:01:28]} (29... Nd8 $14) 30. Qc2 $16 {[%emt 0:02:53]} Kg7 {[%emt 0:03:33]} 31. Qc1 {[%emt 0:06:43]} Kg8 {[%emt 0:11:07]} 32. Bh6 {[%emt 0:00:15]} Nbd8 {[%emt 0:01:31]} (32... Qe8 $16 33. Ng5 a6) 33. Qc5 $18 {[%emt 0:00:31]} Qf6 {[%emt 0:00:42] Repels Qf8+} (33... Qe8 {keeps fighting.} 34. Qxb5 Nf7) 34. Kg2 {[%emt 0:00:35]} (34. Ng5 a6 35. Kg2 (35. Qd5+ Nf7 $18) 35... Qe7 36. Qd5+ Kh8) 34... a6 {[%emt 0:00:30]} 35. Bg5 {[%emt 0:01:56]} Qe6 {[%emt 0:00:31]} 36. Bxd8 {[%emt 0:01:14]} Nxd8 {[%emt 0:00:01]} 37. Nxe5 {[%emt 0:02:34]} (37. Qxe5 Qa2+ 38. Kf1 Nf7 39. Qxd4 Qxa3 $18) 37... Qa2+ {[%emt 0:00:06]} 38. Kf3 {[%emt 0:00:10] Active counter play!} Qxh2 {[%emt 0:00:41]} (38... Qe6 $18 39. Qd5 (39. Qxd4 Nf7 $18) 39... Kg7 40. Qxe6 Nxe6) 39. Qd5+ {[%emt 0:00:13]} (39. Qxd4 Ne6 40. Qd5 Qh1+ 41. Kf2 Qh2+ 42. Kf3 Qh5+ 43. Ke3 Qh6+ 44. Ke2 Qh2+ 45. Kd1 Qg1+ 46. Kc2 Qf2+ 47. Kb3 Qf6 $18) 39... Kg7 {[%emt 0:00:07]} 40. Qd7+ {[%emt 0:00:07] Weighted Error Value: White=0.06 (flawless) /Black=0.52.  Mistake:       	---       	Black=4      Inaccurate:     	White=4     	Black=5      OK:         	White=14    	Black=5      Best:        	White=6     	---} ({Inferior is} 40. Qxd8 Qh1+ 41. Ke2 Qg2+ 42. Kd1 Qf1+ 43. Kd2 (43. Kc2 Qe2+ 44. Kc1 Qe1+ 45. Kc2 Qc3+ 46. Kd1 Qb3+ 47. Ke2 Qc2+ 48. Ke1 Qc1+ 49. Ke2 Qc2+ 50. Kf1 Qd1+ 51. Kg2 Qe2+ 52. Kh3 Qf1+ 53. Kh2 Qf2+ 54. Kh3 Qf1+ 55. Kh2 Qe2+ 56. Kg1 Qe1+ 57. Kh2 Qf2+ 58. Kh3 Qf1+ $11) 43... Qf2+ 44. Kc1 Qe1+ 45. Kb2 Qd2+ 46. Kb1 Qe1+ 47. Kc2 Qe2+ 48. Kc1 Qe1+ 49. Kc2 Qe2+ 50. Kc1 Qe1+ $11) 1-0

[Event "SixDays Budapest GM-A January 2024"]
[Site "Budapest"]
[Date "2024.01.29"]
[Round "5.3"]
[White "Castellanos Rodriguez, Renier"]
[Black "Durak, Can"]
[Result "1/2-1/2"]
[ECO "C44"]
[WhiteElo "2468"]
[BlackElo "2349"]
[Annotator "TA"]
[PlyCount "38"]
[EventDate "2024.01.26"]
[EventType "tourn"]
[EventCountry "HUN"]
[SourceTitle "playchess.com"]
[Source "ChessBase"]
[SourceQuality "1"]
[TimeControl "5400+30"]

{[%evp 14,38,-15,-28,-7,-20,0,0,0,-12,-10,-16,0,0,0,-8,0,0,-10,-3,0,-20,-22,-27,0,-21,-20]} 1. e4 {[%emt 0:00:04]} e5 {[%emt 0:02:03]} 2. Nf3 {[%emt 0:00:05]} Nf6 {[%emt 0:00:09]} 3. d3 {[%emt 0:02:13]} Nc6 {[%emt 0:00:40]} 4. Be2 {[%emt 0:03:11]} d5 {[%emt 0:00:25]} 5. Nbd2 {[%emt 0:00:06]} Be7 {[%emt 0:02:01]} 6. O-O {[%emt 0:00:17]} O-O {[%emt 0:00:15]} 7. c3 {[%emt 0:00:18]} a5 {[%emt 0:02:35]} 8. Qc2 {[%emt 0:02:14]} Re8 {[%emt 0:01:45]} 9. b3 {[%emt 0:02:32]} Bf8 {[%emt 0:01:45]} 10. a3 {[%emt 0:00:22]} Bg4 {[%emt 0:10:52]} 11. Rb1 {[%emt 0:02:38]} Nb8 {[%emt 0:02:45]} 12. b4 {[%emt 0:05:01]} axb4 {[%emt 0:00:22]} 13. axb4 {[%emt 0:00:03]} c6 {[%emt 0:00:14]} 14. h3 {[%emt 0:03:41]} Bc8 {[%emt 0:01:47]} 15. Re1 {[%emt 0:00:47]} Nbd7 {[%emt 0:03:58]} 16. Bf1 {[%emt 0:02:23]} Qc7 {[%emt 0:00:59]} 17. Nb3 {[%emt 0:10:43]} b6 {[%emt 0:02:13]} 18. Bg5 {[%emt 0:03:19]} Bb7 {[%emt 0:04:40]} 19. Nbd2 {[%emt 0:02:08]} h6 {[%emt 0:05:25] A rather calm draw.   Weighted Error Value: White=0.06 (flawless) /Black=0.08 (flawless) .  Inaccurate:     	---       	Black=1      OK:         	White=4     	Black=3} 1/2-1/2

[Event "SixDays Budapest GM-A January 2024"]
[Site "Budapest"]
[Date "2024.01.29"]
[Round "5.4"]
[White "Pribelszky, Bence"]
[Black "Pham Tran Gia Phuc"]
[Result "0-1"]
[ECO "A06"]
[WhiteElo "2371"]
[BlackElo "2416"]
[Annotator "TA"]
[PlyCount "104"]
[EventDate "2024.01.26"]
[EventType "tourn"]
[EventCountry "HUN"]
[SourceTitle "playchess.com"]
[Source "ChessBase"]
[SourceQuality "1"]
[TimeControl "5400+30"]

{[%evp 16,104,-9,-17,-12,-15,-19,-12,-29,-40,-39,-71,-81,-80,-78,-80,-66,-69,-70,-62,-62,-106,-70,-102,-69,-103,-72,-162,-163,-147,-79,-157,-157,-154,-153,-113,-93,-96,-88,-98,-101,-108,-72,-79,-74,-83,-52,-148,-175,-154,-138,-124,-114,-337,-327,-350,-324,-461,-432,-431,-434,-478,-453,-597,-675,-718,-693,-729,-733,-772,-772,-760,-746,-753,-731,-2289,-2743,-2627,-2508,-29988,-29989,-29989,-29988,-29989,-29988,-29988,-29989,-29989,-29990,-29992,-29991]} 1. Nf3 {[%emt 0:01:14]} d5 {[%emt 0:00:08]} 2. g3 {[%emt 0:00:07]} Nc6 {[%emt 0:00:08]} 3. d4 {[%emt 0:00:13]} Bf5 {[%emt 0:00:08]} 4. Bg2 {[%emt 0:00:14]} Nb4 {[%emt 0:00:08]} 5. Na3 {[%emt 0:00:08]} e6 {[%emt 0:00:09]} 6. O-O {[%emt 0:01:10]} Be7 {[%emt 0:00:05]} 7. Bd2 {[%emt 0:07:57] D02: 1 d4 d5 2 Nf3 sidelines, including 2...Nf6 3 g3 and 2...Nf6 3 Bf4.} Nc6 {[%emt 0:05:00]} 8. Nb5 $146 {[%emt 0:18:25]} ({Predecessor:} 8. c4 Nf6 9. Qb3 Rb8 10. Rfd1 O-O 11. Rac1 Ne4 12. Be1 Bg4 13. Nc2 Bf6 14. Ne3 Bxf3 15. exf3 dxc4 16. Nxc4 Nd6 17. Nxd6 Qxd6 18. Qc4 Rfd8 19. f4 {½-½ Halkias,S (2330)-Kapnisis,S (2120) GRE-ch U16 14th 1996 (5)}) 8... a6 {[%emt 0:14:03]} 9. Nc3 {[%emt 0:00:07]} Nf6 {[%emt 0:00:20]} 10. Bf4 {[%emt 0:06:16]} Ne4 {[%emt 0:10:01]} 11. Nxe4 {[%emt 0:15:51]} Bxe4 {[%emt 0:10:11]} 12. Ne5 {[%emt 0:05:04]} Nxe5 {[%emt 0:10:08]} 13. Bxe5 {[%emt 0:00:14]} Bxg2 {[%emt 0:00:41]} 14. Kxg2 {[%emt 0:00:03]} f6 {[%emt 0:00:08]} 15. Bf4 {[%emt 0:00:03]} g5 {[%emt 0:00:15]} 16. Be3 {[%emt 0:03:57]} Qd7 {[%emt 0:06:55]} 17. Qd3 {[%emt 0:13:09]} O-O-O {[%emt 0:06:12]} 18. c4 {[%emt 0:01:13]} h5 {[%emt 0:00:36]} 19. f3 {[%emt 0:00:45]} f5 {[%emt 0:09:25]} 20. Rac1 {[%emt 0:01:12]} h4 {[%emt 0:05:48]} 21. g4 {[%emt 0:05:16]} (21. c5 $17) 21... h3+ {[%emt 0:02:23]} 22. Kh1 {[%emt 0:00:38] [#]} fxg4 {[%emt 0:00:23]} (22... dxc4 $142 $1 23. Qxc4 fxg4 24. fxg4 Rh4) 23. fxg4 {[%emt 0:00:03]} (23. c5 $142) 23... dxc4 $17 {[%emt 0:00:21]} 24. Qxc4 {[%emt 0:00:07]} Rdf8 {[%emt 0:00:12]} 25. Bf2 {[%emt 0:06:22]} Bd6 {[%emt 0:01:58]} 26. Bg3 {[%emt 0:02:49]} Kb8 {[%emt 0:00:21]} 27. Rf3 {[%emt 0:04:25]} Rxf3 {[%emt 0:06:49]} 28. exf3 {[%emt 0:00:03]} Qf7 {[%emt 0:00:08]} 29. Qe2 {[%emt 0:01:45]} Rd8 {[%emt 0:00:40]} 30. Rd1 {[%emt 0:00:53]} Bf4 {[%emt 0:02:50]} 31. Bf2 {[%emt 0:00:55]} ({White should play} 31. Qf1 $15) 31... Qd7 $17 {[%emt 0:01:54]} 32. Qc4 {[%emt 0:03:34]} Qd6 {[%emt 0:01:39]} 33. Re1 {[%emt 0:00:31]} e5 {[%emt 0:00:58]} 34. Rd1 $2 {[%emt 0:01:51]} (34. dxe5 $17 Bxe5 35. Be3) 34... Qd5 $19 {[%emt 0:01:39]} 35. Qxd5 {[%emt 0:00:55]} Rxd5 {[%emt 0:00:05]} 36. b4 {[%emt 0:00:11]} (36. Bg3 $142) 36... b6 $19 {[%emt 0:00:05]} 37. Kg1 {[%emt 0:00:45]} Kc8 {[%emt 0:00:08]} 38. Kf1 {[%emt 0:00:34]} c5 {[%emt 0:00:05]} (38... Bxh2 39. Ke2 $19) 39. bxc5 {[%emt 0:00:16]} bxc5 {[%emt 0:00:05]} (39... Bxh2 40. cxb6 Bf4 41. Kg1 $17) 40. Ke2 {[%emt 0:00:18]} exd4 {[%emt 0:00:06]} 41. Kd3 {[%emt 0:00:22]} Re5 {[%emt 0:00:14]} 42. Rb1 {[%emt 0:00:56]} Kc7 {[%emt 0:00:08]} (42... Bxh2 43. Rh1 Bf4 44. Rxh3 $19) 43. Rb2 {[%emt 0:00:25]} Kc6 {[%emt 0:00:08]} ({Weaker is} 43... Bxh2 44. Bxd4 cxd4 45. Rxh2 $17) 44. Kc4 {[%emt 0:00:14]} Re7 {[%emt 0:00:44]} (44... Bxh2 45. Bxd4 Bf4 (45... cxd4 46. Rxh2 Ra5 47. Kxd4 $11) 46. Bxe5 Bxe5 47. Rb1 $19) 45. Kd3 {[%emt 0:00:59]} Kd5 {[%emt 0:00:09]} 46. Rc2 {[%emt 0:00:21]} Rb7 {[%emt 0:00:07]} 47. Bg3 {[%emt 0:00:14]} Bxg3 {[%emt 0:00:46]} 48. hxg3 {[%emt 0:00:03]} Re7 {[%emt 0:00:08]} 49. Rf2 {[%emt 0:00:37]} Re3+ {[%emt 0:00:06]} 50. Kd2 {[%emt 0:00:11]} c4 {[%emt 0:00:05]} 51. f4 {[%emt 0:00:04]} Rxg3 {[%emt 0:00:08]} 52. f5 {[%emt 0:00:06]} Rg2 {[%emt 0:00:05]} 0-1

[Event "SixDays Budapest GM-A January 2024"]
[Site "Budapest"]
[Date "2024.01.30"]
[Round "6.1"]
[White "Can, Isik"]
[Black "Sedlak, Nikola"]
[Result "1-0"]
[ECO "B60"]
[WhiteElo "2500"]
[BlackElo "2463"]
[Annotator "TA"]
[PlyCount "53"]
[EventDate "2024.01.26"]
[EventType "tourn"]
[EventCountry "HUN"]
[SourceTitle "playchess.com"]
[Source "ChessBase"]
[SourceQuality "1"]
[TimeControl "5400+30"]

{[%evp 11,53,21,52,33,27,27,30,22,30,22,28,18,27,29,36,40,58,56,52,49,60,65,62,64,62,62,68,56,36,36,71,56,64,62,75,33,31,0,0,0,441,435,423,357]} 1. e4 {[%emt 0:05:44]} c5 {[%emt 0:01:11]} 2. Nf3 {[%emt 0:00:06]} d6 {[%emt 0:00:17]} 3. d4 {[%emt 0:00:06]} cxd4 {[%emt 0:00:23]} 4. Nxd4 {[%emt 0:00:05]} Nf6 {[%emt 0:00:13]} 5. Nc3 {[%emt 0:00:04]} Nc6 {[%emt 0:00:22]} 6. Bg5 {[%emt 0:00:06]} Bd7 {[%emt 0:00:38]} 7. Nxc6 {[%emt 0:00:24]} bxc6 {[%emt 0:07:03]} 8. Bc4 {[%emt 0:09:30]} Qa5 {[%emt 0:14:35]} 9. Qd2 {[%emt 0:12:00] White has an edge.} Qb4 {[%emt 0:09:33]} 10. b3 {[%emt 0:04:18][%cal Oe4e5,Bb2b3,Bb3b4][%mdl 32]} h6 {[%emt 0:06:33]} 11. a3 {[%emt 0:09:08]} Qa5 {[%emt 0:01:56]} 12. Bxf6 {[%emt 0:05:31]} gxf6 {[%emt 0:00:57]} 13. O-O {[%emt 0:01:24]} h5 {[%emt 0:08:14]} 14. b4 {[%emt 0:02:16]} Qc7 {[%emt 0:00:06]} 15. Rab1 {[%emt 0:08:10]} Bh6 {[%emt 0:01:35]} 16. Qd3 {[%emt 0:01:37]} Kf8 {[%emt 0:05:05]} 17. Ne2 {[%emt 0:06:50] White is more active.} Rd8 {[%emt 0:08:11]} 18. Rfd1 {[%emt 0:09:53]} Rg8 {[%emt 0:01:38]} 19. b5 {[%emt 0:02:40]} cxb5 {[%emt 0:04:43]} 20. Bxb5 {[%emt 0:01:19]} Bg4 {[%emt 0:01:50]} 21. h3 {[%emt 0:00:51]} Bxe2 {[%emt 0:01:21]} 22. Qxe2 {[%emt 0:00:17]} Rg5 {[%emt 0:00:47]} 23. Rd5 {[%emt 0:04:05]} h4 {[%emt 0:02:19]} 24. Bc4 {[%emt 0:04:39]} Rc8 {[%emt 0:02:47]} 25. Rxg5 {[%emt 0:00:53]} Bxg5 $4 {[%emt 0:02:56][%mdl 8192] [#] Black is weak on the light squares} (25... fxg5 $11 {and Black is okay.} 26. Qh5 Qxc4 27. Qxh6+ Ke8) 26. Qh5 $1 $18 {[%emt 0:01:31][%csl Gc4][%cal Rh5f7]} e6 {[%emt 0:00:38][%cal Of8e7] [#]} 27. Bxe6 $1 {[%emt 0:01:29][%mdl 512] Weighted Error Value: White=0.07 (flawless) /Black=0.36.  Loses game:     	---       	Black=1      Inaccurate:     	White=2     	Black=1      OK:         	White=8     	Black=8      Best:        	White=1     	---        Strong:       	White=1     	---} 1-0

[Event "SixDays Budapest GM-A January 2024"]
[Site "Budapest"]
[Date "2024.01.30"]
[Round "6.2"]
[White "Pham Tran Gia Phuc"]
[Black "Nagy, Gabor"]
[Result "1/2-1/2"]
[ECO "C49"]
[WhiteElo "2416"]
[BlackElo "2450"]
[Annotator "TA"]
[PlyCount "41"]
[EventDate "2024.01.26"]
[EventType "tourn"]
[EventCountry "HUN"]
[SourceTitle "playchess.com"]
[Source "ChessBase"]
[SourceQuality "1"]
[TimeControl "5400+30"]

{[%evp 21,41,26,7,10,13,10,39,32,55,45,48,43,48,36,49,43,39,56,63,15,49,31]} 1. e4 {[%emt 0:00:12]} e5 {[%emt 0:00:19]} 2. Nf3 {[%emt 0:00:10]} Nc6 {[%emt 0:00:12]} 3. Nc3 {[%emt 0:00:09]} Nf6 {[%emt 0:00:06]} 4. Bb5 {[%emt 0:00:06]} Bb4 {[%emt 0:00:35]} 5. O-O {[%emt 0:00:09]} O-O {[%emt 0:00:10]} 6. d3 {[%emt 0:00:08]} d6 {[%emt 0:00:31]} 7. Ne2 {[%emt 0:00:09]} Ne7 {[%emt 0:01:07]} 8. c3 {[%emt 0:00:07]} Ba5 {[%emt 0:00:29]} 9. Ng3 {[%emt 0:00:09]} c6 {[%emt 0:00:29]} 10. Ba4 {[%emt 0:00:07]} Ng6 {[%emt 0:00:41]} 11. d4 Re8 {[%emt 0:00:58]} 12. Bc2 {[%emt 0:01:29]} h6 {[%emt 0:03:27]} 13. h3 {[%emt 0:01:26]} Be6 {[%emt 0:05:23]} 14. Re1 {[%emt 0:03:44]} Qc7 {[%emt 0:03:33]} 15. a4 {[%emt 0:05:56] [#] b4 is the strong threat.} Bb6 {[%emt 0:02:45]} 16. Be3 {[%emt 0:03:50]} Rad8 {[%emt 0:00:48]} 17. Qc1 {[%emt 0:00:11][%cal Oa4a5] Black must now prevent a5!} a5 {[%emt 0:03:33]} 18. b3 {[%emt 0:06:17]} Bc8 {[%emt 0:04:54]} 19. Rb1 {[%emt 0:16:33]} Ba7 {[%emt 0:07:16]} 20. Qa3 {[%emt 0:08:20]} (20. Rd1 $14) 20... d5 {[%emt 0:11:13] [#] aiming for ...dxe4.} 21. dxe5 {[%emt 0:15:27] Weighted Error Value: White=0.10 (very precise) /Black=0.09 (flawless) .  Mistake:       	White=1     	---        Inaccurate:     	---       	Black=2      OK:         	White=2     	Black=3      Best:        	White=1     	---} 1/2-1/2

[Event "SixDays Budapest GM-A January 2024"]
[Site "Budapest"]
[Date "2024.01.30"]
[Round "6.3"]
[White "Durak, Can"]
[Black "Pribelszky, Bence"]
[Result "1-0"]
[ECO "A41"]
[WhiteElo "2349"]
[BlackElo "2371"]
[Annotator "RC"]
[PlyCount "45"]
[EventDate "2024.01.26"]
[EventType "tourn"]
[EventCountry "HUN"]
[SourceTitle "playchess.com"]
[Source "ChessBase"]
[SourceQuality "1"]
[TimeControl "5400+30"]

1. d4 {[%emt 0:05:12]} d6 {[%emt 0:00:20]} 2. e4 {[%emt 0:00:30]} Nf6 {[%emt 0:00:46]} 3. Bd3 {[%emt 0:00:19]} e5 {[%emt 0:02:00]} 4. c3 {[%emt 0:00:47]} d5 {[%emt 0:18:28]} 5. dxe5 {[%emt 0:00:28]} Nxe4 {[%emt 0:02:24]} 6. Nf3 {[%emt 0:00:21]} Be7 {[%emt 0:03:32]} 7. Nbd2 {[%emt 0:05:20]} Bf5 {[%emt 0:10:07]} 8. Qe2 {[%emt 0:05:19]} Nxd2 {[%emt 0:10:03]} 9. Bxf5 {[%emt 0:00:44]} Nxf3+ {[%emt 0:00:10]} 10. Qxf3 {[%emt 0:00:11]} g6 {[%emt 0:04:37]} 11. Bc2 {[%emt 0:06:34]} c6 {[%emt 0:02:00]} 12. O-O {[%emt 0:12:34]} Nd7 {[%emt 0:01:10]} 13. Qh3 {[%emt 0:09:35]} Nc5 {[%emt 0:07:45]} 14. f4 {[%emt 0:03:54]} Ne4 {[%emt 0:03:23]} 15. Be3 {[%emt 0:03:21]} f5 {[%emt 0:10:01]} 16. exf6 {[%emt 0:05:34]} Bxf6 {[%emt 0:00:07]} 17. f5 {[%emt 0:01:15]} Qe7 {[%emt 0:02:08]} 18. Bxe4 {[%emt 0:04:50]} dxe4 {[%emt 0:00:21]} 19. fxg6 {[%emt 0:00:23]} hxg6 {[%emt 0:00:13]} 20. Qg4 {[%emt 0:00:10]} g5 {[%emt 0:01:16]} 21. Rae1 {[%emt 0:01:51]} O-O {[%emt 0:09:16]} 22. Rf5 {[%emt 0:03:12]} Bg7 {[%emt 0:00:42]} 23. Bc5 {[%emt 0:00:43]} 1-0

[Event "SixDays Budapest GM-A January 2024"]
[Site "Budapest"]
[Date "2024.01.30"]
[Round "6.4"]
[White "Barrish, Daniel"]
[Black "Castellanos Rodriguez, Renier"]
[Result "1/2-1/2"]
[ECO "B30"]
[WhiteElo "2347"]
[BlackElo "2468"]
[Annotator "TA"]
[PlyCount "113"]
[EventDate "2024.01.26"]
[EventType "tourn"]
[EventCountry "HUN"]
[SourceTitle "playchess.com"]
[Source "ChessBase"]
[SourceQuality "1"]
[TimeControl "5400+30"]

{[%evp 16,113,29,29,28,14,21,0,0,0,0,0,0,-16,-13,-11,-18,-23,-19,-47,-33,-48,-28,-59,-55,-66,-39,-65,-47,-64,-41,-66,-33,-21,-25,-19,-26,-38,-38,-38,-38,-33,-36,-47,-41,-52,-50,-50,0,0,0,0,0,0,0,0,0,0,0,-8,-12,-15,-11,-15,-15,-17,-14,-24,-12,-18,-13,-16,-12,-27,-9,-15,-8,-9,-13,-16,-7,-9,-11,-14,-6,-7,-4,-7,-6,-8,0,0,0,-8,0,0,0,0,0,0]} 1. e4 {[%emt 0:01:41]} c5 {[%emt 0:00:25]} 2. Nf3 {[%emt 0:00:09]} Nc6 {[%emt 0:02:43]} 3. Bb5 {[%emt 0:00:16]} d6 {[%emt 0:00:28]} 4. O-O {[%emt 0:00:49]} Bd7 {[%emt 0:00:04]} 5. Re1 {[%emt 0:00:20]} Nf6 {[%emt 0:00:18]} 6. c3 {[%emt 0:00:30]} a6 {[%emt 0:00:05]} 7. Bf1 {[%emt 0:00:06]} Bg4 {[%emt 0:00:04]} 8. h3 {[%emt 0:01:45]} Bxf3 {[%emt 0:00:07]} 9. Qxf3 {[%emt 0:00:02]} e6 {[%emt 0:02:07]} 10. d3 {[%emt 0:01:42]} Be7 {[%emt 0:00:24]} 11. Be3 {[%emt 0:01:45]} d5 {[%emt 0:02:26]} 12. exd5 {[%emt 0:00:46]} Nxd5 {[%emt 0:00:33]} 13. Nd2 {[%emt 0:00:55]} O-O {[%emt 0:01:01]} 14. Nb3 {[%emt 0:00:59]} Nxe3 {[%emt 0:02:07]} 15. Qxe3 {[%emt 0:05:09]} Qb6 {[%emt 0:00:58]} 16. Rad1 {[%emt 0:02:36]} a5 {[%emt 0:02:58]} 17. Rd2 {[%emt 0:03:55]} a4 {[%emt 0:05:32]} 18. Nc1 {[%emt 0:00:17]} Qa5 {[%emt 0:02:21]} 19. a3 {[%emt 0:02:47]} b5 {[%emt 0:02:41]} 20. Rc2 {[%emt 0:05:55]} Rac8 {[%emt 0:04:52]} 21. Qe4 {[%emt 0:03:09]} Rfd8 {[%emt 0:05:46]} 22. Ne2 {[%emt 0:03:00]} Qb6 {[%emt 0:07:58]} 23. d4 {[%emt 0:12:07]} cxd4 {[%emt 0:09:40]} 24. cxd4 {[%emt 0:04:15]} Bf6 {[%emt 0:01:00]} 25. Rec1 {[%emt 0:01:04][%cal Be1c1,Bc1c6,Bc6b6,Bb6b7][%mdl 32]} Ne7 {[%emt 0:02:19][%cal Bc6e7,Be7c8,Bc8d6,Bd6c4][%mdl 32]} 26. Rxc8 {[%emt 0:00:40]} Nxc8 {[%emt 0:00:10]} 27. Qc6 {[%emt 0:02:22]} Qxc6 {[%emt 0:06:37]} (27... Bxd4 $2 {is the wrong capture.} 28. Nxd4 Qxd4 29. Qxc8 $18 (29. Bxb5 Na7 $11) (29. Qxb5 Nd6 $14)) 28. Rxc6 {[%emt 0:00:08]} Nd6 {[%emt 0:00:02]} (28... Bxd4 $2 {loses.} 29. Nxd4 Ne7 30. Rb6 $18) 29. Rb6 {[%emt 0:05:33]} Kf8 {[%emt 0:04:20]} 30. g3 {[%emt 0:01:04]} Ke7 {[%emt 0:02:27] Strongly threatening ...Rc8.} 31. Bg2 {[%emt 0:01:41]} Rc8 {[%emt 0:00:54]} (31... Kd7 $15 32. Bc6+ Kc7) 32. Bc6 $11 {[%emt 0:03:31]} Nc4 {[%emt 0:06:59]} 33. Rb7+ {[%emt 0:01:06]} Kf8 {[%emt 0:00:05]} 34. Bd7 {[%emt 0:12:18]} Rd8 {[%emt 0:00:34]} 35. Bxb5 {[%emt 0:00:20]} Nxb2 {[%emt 0:01:46]} (35... Nd6 $5 36. Rb6 $8 Nxb5 37. Rxb5 Bxd4 $14) 36. Bc6 {[%emt 0:06:35]} Nc4 {[%emt 0:01:38]} 37. Bxa4 {[%emt 0:05:05]} Nxa3 {[%emt 0:00:24]} 38. Rb4 {[%emt 0:00:43]} Be7 {[%emt 0:01:10]} 39. Rb7 {[%emt 0:00:32]} Nc4 {[%emt 0:01:06]} 40. Rd7 {[%emt 0:01:49]} Rc8 {[%emt 0:01:49]} 41. Bb3 {[%emt 0:00:44]} Nd2 {[%emt 0:02:40]} 42. Ba4 {[%emt 0:00:11]} Ne4 {[%emt 0:00:54]} 43. Kg2 {[%emt 0:01:04]} g6 {[%emt 0:00:21]} 44. Kf3 {[%emt 0:01:41]} Nd2+ {[%emt 0:01:13]} 45. Kg2 {[%emt 0:00:56] The position is equal.} Rc4 {[%emt 0:01:55]} 46. Bb5 {[%emt 0:00:29]} Rb4 {[%emt 0:00:17]} 47. Bc6 {[%emt 0:01:06]} Nc4 {[%emt 0:01:13]} 48. Rb7 {[%emt 0:01:32]} Rxb7 {[%emt 0:02:04]} 49. Bxb7 {[%emt 0:00:05][%mdl 4096] Endgame. KBN-KBN} Nd6 {[%emt 0:00:23]} 50. Bc6 {[%emt 0:00:26]} Bd8 {[%emt 0:00:32]} 51. Kf3 {[%emt 0:00:53]} Bb6 {[%emt 0:00:09]} 52. Ke3 {[%emt 0:01:47]} h5 {[%emt 0:01:33]} 53. Kd3 {[%emt 0:01:02]} Ke7 {[%emt 0:00:26]} 54. g4 {[%emt 0:01:10]} hxg4 {[%emt 0:03:40]} 55. hxg4 {[%emt 0:00:05]} Kf6 {[%emt 0:00:04]} 56. Nc3 {[%emt 0:01:11]} Kg5 {[%emt 0:02:46]} 57. f3 {[%emt 0:01:04] Weighted Error Value: White=0.06 (flawless) /Black=0.06 (flawless) .  Mistake:       	---       	Black=1      Inaccurate:     	White=3     	Black=2      OK:         	White=16    	Black=22     Best:        	White=1     	Black=1} 1/2-1/2